Workbook

Sheet Sheet1 (3)
A1: 附件1
A2: 贵阳市粮食和物资储备局2022年公开招聘局属事业单位工作人员专业测试成绩及进入下一轮环节人员名单
A3: 序号 | B3: 姓名 | C3: 单位 | D3: 报考岗位及代码 | E3: 笔试成绩 | F3: 笔试成绩（百分制） | G3: 笔试成绩30% | H3: 专业测试成绩 | I3: 专业测试成绩40% | J3: 笔试、专业测试成绩 | K3: 笔试、专业测试排名 | L3: 是否进入下一轮
A4: 1 | B4: 罗晓涌 | C4: 贵阳市粮食和物资储备安全保障中心 | D4: 20101009002 | E4: 202.00 | F4: =E4*100/300 -> 67.33 | G4: =F4*0.3 -> 20.20 | H4: 75.66 | I4: =ROUND(H4*0.4,2) -> 30.26 | J4: =G4+I4 -> 50.46 | K4: 1 | L4: 是
A5: 2 | B5: 戴沁洵 | C5: 贵阳市粮食和物资储备安全保障中心 | D5: 20101009002 | E5: 218.00 | F5: 72.67 | G5: 21.80 | H5: 69.92 | I5: 27.97 | J5: 49.77 | K5: 2 | L5: 是
A6: 3 | B6: 杨顺杰 | C6: 贵阳市粮食和物资储备安全保障中心 | D6: 20101009002 | E6: 207.50 | F6: 69.17 | G6: 20.75 | H6: 70.87 | I6: 28.35 | J6: 49.10 | K6: 3 | L6: 是
A7: 4 | B7: 陈楚琦 | C7: 贵阳市粮食和物资储备安全保障中心 | D7: 20101009002 | E7: 214.50 | F7: 71.50 | G7: 21.45 | H7: 67.62 | I7: 27.05 | J7: 48.50 | K7: 4 | L7: 是
A8: 5 | B8: 陈振雄 | C8: 贵阳市粮食和物资储备安全保障中心 | D8: 20101009002 | E8: 192.00 | F8: 64.00 | G8: 19.20 | H8: 72.86 | I8: 29.14 | J8: 48.34 | K8: 5 | L8: 是
A9: 6 | B9: 蔡林辛 | C9: 贵阳市粮食和物资储备安全保障中心 | D9: 20101009002 | E9: 193.00 | F9: 64.33 | G9: 19.30 | H9: 72.50 | I9: 29.00 | J9: 48.30 | K9: 6 | L9: 是
A10: 7 | B10: 郭浩 | C10: 贵阳市粮食和物资储备安全保障中心 | D10: 20101009002 | E10: 178.00 | F10: 59.33 | G10: 17.80 | H10: 75.22 | I10: 30.09 | J10: 47.89 | K10: 7 | L10: 是
A11: 8 | B11: 徐冠一 | C11: 贵阳市粮食和物资储备安全保障中心 | D11: 20101009002 | E11: 198.50 | F11: 66.17 | G11: 19.85 | H11: 69.39 | I11: 27.76 | J11: 47.61 | K11: 8 | L11: 是
A12: 9 | B12: 李春生 | C12: 贵阳市粮食和物资储备安全保障中心 | D12: 20101009002 | E12: 202.00 | F12: 67.33 | G12: 20.20 | H12: 68.39 | I12: 27.36 | J12: 47.56 | K12: 9 | L12: 是
A13: 10 | B13: 马云飞 | C13: 贵阳市粮食和物资储备安全保障中心 | D13: 20101009002 | E13: 212.50 | F13: 70.83 | G13: 21.25 | H13: 65.75 | I13: 26.30 | J13: 47.55 | K13: 10 | L13: 是
A14: 11 | B14: 张程璨 | C14: 贵阳市粮食和物资储备安全保障中心 | D14: 20101009002 | E14: 209.50 | F14: 69.83 | G14: 20.95 | H14: 65.05 | I14: 26.02 | J14: 46.97 | K14: 11 | L14: 是
A15: 12 | B15: 马鹏 | C15: 贵阳市粮食和物资储备安全保障中心 | D15: 20101009002 | E15: 185.00 | F15: 61.67 | G15: 18.50 | H15: 71.11 | I15: 28.44 | J15: 46.94 | K15: 12 | L15: 是
A16: 13 | B16: 徐亮 | C16: 贵阳市粮食和物资储备安全保障中心 | D16: 20101009002 | E16: 196.50 | F16: 65.50 | G16: 19.65 | H16: 68.09 | I16: 27.24 | J16: 46.89 | K16: 13 | L16: 是
A17: 14 | B17: 杨蔓婵 | C17: 贵阳市粮食和物资储备安全保障中心 | D17: 20101009002 | E17: 200.00 | F17: 66.67 | G17: 20.00 | H17: 67.00 | I17: 26.80 | J17: 46.80 | K17: 14 | L17: 是
A18: 15 | B18: 陈康杰 | C18: 贵阳市粮食和物资储备安全保障中心 | D18: 20101009002 | E18: 218.50 | F18: 72.83 | G18: 21.85 | H18: 61.63 | I18: 24.65 | J18: 46.50 | K18: 15 | L18: 是
A19: 16 | B19: 田茂江 | C19: 贵阳市粮食和物资储备安全保障中心 | D19: 20101009002 | E19: 183.00 | F19: 61.00 | G19: 18.30 | H19: 70.36 | I19: 28.14 | J19: 46.44 | K19: 16 | L19: 是
A20: 17 | B20: 李夏伊 | C20: 贵阳市粮食和物资储备安全保障中心 | D20: 20101009002 | E20: 181.50 | F20: 60.50 | G20: 18.15 | H20: 70.21 | I20: 28.08 | J20: 46.23 | K20: 17 | L20: 是
A21: 18 | B21: 杜海燕 | C21: 贵阳市粮食和物资储备安全保障中心 | D21: 20101009002 | E21: 182.00 | F21: 60.67 | G21: 18.20 | H21: 69.78 | I21: 27.91 | J21: 46.11 | K21: 18 | L21: 是
A22: 19 | B22: 卯倩倩 | C22: 贵阳市粮食和物资储备安全保障中心 | D22: 20101009002 | E22: 175.50 | F22: 58.50 | G22: 17.55 | H22: 71.28 | I22: 28.51 | J22: 46.06 | K22: 19 | L22: 否
A23: 20 | B23: 罗方晟 | C23: 贵阳市粮食和物资储备安全保障中心 | D23: 20101009002 | E23: 184.50 | F23: 61.50 | G23: 18.45 | H23: 68.65 | I23: 27.46 | J23: 45.91 | K23: 20 | L23: 否
A24: 21 | B24: 吴万利 | C24: 贵阳市粮食和物资储备安全保障中心 | D24: 20101009002 | E24: 176.50 | F24: 58.83 | G24: 17.65 | H24: 70.15 | I24: 28.06 | J24: 45.71 | K24: 21 | L24: 否
A25: 22 | B25: 尚霞 | C25: 贵阳市粮食和物资储备安全保障中心 | D25: 20101009002 | E25: 185.00 | F25: 61.67 | G25: 18.50 | H25: 67.21 | I25: 26.88 | J25: 45.38 | K25: 22 | L25: 否
A26: 23 | B26: 韦富豪 | C26: 贵阳市粮食和物资储备安全保障中心 | D26: 20101009002 | E26: 206.50 | F26: 68.83 | G26: 20.65 | H26: 61.60 | I26: 24.64 | J26: 45.29 | K26: 23 | L26: 否
A27: 24 | B27: 陈星兆 | C27: 贵阳市粮食和物资储备安全保障中心 | D27: 20101009002 | E27: 184.00 | F27: 61.33 | G27: 18.40 | H27: 67.10 | I27: 26.84 | J27: 45.24 | K27: 24 | L27: 否
A28: 25 | B28: 龙涛 | C28: 贵阳市粮食和物资储备安全保障中心 | D28: 20101009002 | E28: 180.00 | F28: 60.00 | G28: 18.00 | H28: 67.51 | I28: 27.00 | J28: 45.00 | K28: 25 | L28: 否
A29: 26 | B29: 陶友政 | C29: 贵阳市粮食和物资储备安全保障中心 | D29: 20101009002 | E29: 190.50 | F29: 63.50 | G29: 19.05 | H29: 64.58 | I29: 25.83 | J29: 44.88 | K29: 26 | L29: 否
A30: 27 | B30: 罗钱刚 | C30: 贵阳市粮食和物资储备安全保障中心 | D30: 20101009002 | E30: 179.50 | F30: 59.83 | G30: 17.95 | H30: 66.83 | I30: 26.73 | J30: 44.68 | K30: 27 | L30: 否
A31: 28 | B31: 余宇恂 | C31: 贵阳市粮食和物资储备安全保障中心 | D31: 20101009002 | E31: 181.50 | F31: 60.50 | G31: 18.15 | H31: 65.87 | I31: 26.35 | J31: 44.50 | K31: 28 | L31: 否
A32: 29 | B32: 赵星星 | C32: 贵阳市粮食和物资储备安全保障中心 | D32: 20101009002 | E32: 175.00 | F32: 58.33 | G32: 17.50 | H32: 67.10 | I32: 26.84 | J32: 44.34 | K32: 29 | L32: 否
A33: 30 | B33: 文竹 | C33: 贵阳市粮食和物资储备安全保障中心 | D33: 20101009002 | E33: 178.00 | F33: 59.33 | G33: 17.80 | H33: 66.14 | I33: 26.46 | J33: 44.26 | K33: 30 | L33: 否
A34: 31 | B34: 许俊伟 | C34: 贵阳市粮食和物资储备安全保障中心 | D34: 20101009002 | E34: 184.50 | F34: 61.50 | G34: 18.45 | H34: 64.48 | I34: 25.79 | J34: 44.24 | K34: 31 | L34: 否
A35: 32 | B35: 李进 | C35: 贵阳市粮食和物资储备安全保障中心 | D35: 20101009002 | E35: 183.00 | F35: 61.00 | G35: 18.30 | H35: 64.86 | I35: 25.94 | J35: 44.24 | K35: 31 | L35: 否
A36: 33 | B36: 郭正兵 | C36: 贵阳市粮食和物资储备安全保障中心 | D36: 20101009002 | E36: 191.00 | F36: 63.67 | G36: 19.10 | H36: 62.13 | I36: 24.85 | J36: 43.95 | K36: 33 | L36: 否
A37: 34 | B37: 刘海艳 | C37: 贵阳市粮食和物资储备安全保障中心 | D37: 20101009002 | E37: 179.00 | F37: =E37*100/300 -> 59.67 | G37: =F37*0.3 -> 17.90 | H37: 64.56 | I37: =ROUND(H37*0.4,2) -> 25.82 | J37: =G37+I37 -> 43.72 | K37: 34 | L37: 否
A38: 35 | B38: 胡金鹏 | C38: 贵阳市粮食和物资储备安全保障中心 | D38: 20101009002 | E38: 177.00 | F38: =E38*100/300 -> 59.00 | G38: =F38*0.3 -> 17.70 | H38: 64.55 | I38: =ROUND(H38*0.4,2) -> 25.82 | J38: =G38+I38 -> 43.52 | K38: 35 | L38: 否
A39: 36 | B39: 付军 | C39: 贵阳市粮食和物资储备安全保障中心 | D39: 20101009002 | E39: 176.00 | F39: =E39*100/300 -> 58.67 | G39: =F39*0.3 -> 17.60 | H39: 63.59 | I39: =ROUND(H39*0.4,2) -> 25.44 | J39: =G39+I39 -> 43.04 | K39: 36 | L39: 否
A40: 37 | B40: 万程 | C40: 贵阳市粮食和物资储备安全保障中心 | D40: 20101009002 | E40: 176.50 | F40: =E40*100/300 -> 58.83 | G40: =F40*0.3 -> 17.65 | H40: 63.42 | I40: =ROUND(H40*0.4,2) -> 25.37 | J40: =G40+I40 -> 43.02 | K40: 37 | L40: 否
A41: 38 | B41: 席椿凯 | C41: 贵阳市粮食和物资储备安全保障中心 | D41: 20101009002 | E41: 179.50 | F41: =E41*100/300 -> 59.83 | G41: =F41*0.3 -> 17.95 | H41: 62.45 | I41: =ROUND(H41*0.4,2) -> 24.98 | J41: =G41+I41 -> 42.93 | K41: 38 | L41: 否
A42: 39 | B42: 顾婷 | C42: 贵阳市粮食和物资储备安全保障中心 | D42: 20101009002 | E42: 184.50 | F42: =E42*100/300 -> 61.50 | G42: =F42*0.3 -> 18.45 | H42: 61.11 | I42: =ROUND(H42*0.4,2) -> 24.44 | J42: =G42+I42 -> 42.89 | K42: 39 | L42: 否
A43: 40 | B43: 李兵 | C43: 贵阳市粮食和物资储备安全保障中心 | D43: 20101009002 | E43: 178.50 | F43: =E43*100/300 -> 59.50 | G43: =F43*0.3 -> 17.85 | H43: 62.59 | I43: =ROUND(H43*0.4,2) -> 25.04 | J43: =G43+I43 -> 42.89 | K43: 39 | L43: 否
A44: 41 | B44: 陈宇 | C44: 贵阳市粮食和物资储备安全保障中心 | D44: 20101009002 | E44: 179.50 | F44: =E44*100/300 -> 59.83 | G44: =F44*0.3 -> 17.95 | H44: 61.85 | I44: =ROUND(H44*0.4,2) -> 24.74 | J44: =G44+I44 -> 42.69 | K44: 41 | L44: 否
A45: 42 | B45: 丁建宇 | C45: 贵阳市粮食和物资储备安全保障中心 | D45: 20101009002 | E45: 177.00 | F45: =E45*100/300 -> 59.00 | G45: =F45*0.3 -> 17.70 | H45: 61.28 | I45: =ROUND(H45*0.4,2) -> 24.51 | J45: =G45+I45 -> 42.21 | K45: 42 | L45: 否
A46: 43 | B46: 刘天琳 | C46: 贵阳市粮食和物资储备安全保障中心 | D46: 20101009002 | E46: 182.00 | F46: =E46*100/300 -> 60.67 | G46: =F46*0.3 -> 18.20 | H46: 59.71 | I46: -- | J46: -- | K46: -- | L46: 否，专业测试未达最低合格分数线
A47: 44 | B47: 朱淋琨 | C47: 贵阳市粮食和物资储备安全保障中心 | D47: 20101009002 | E47: 198.50 | F47: =E47*100/300 -> 66.17 | G47: =F47*0.3 -> 19.85 | H47: 59.30 | I47: -- | J47: -- | K47: -- | L47: 否，专业测试未达最低合格分数线
A48: 45 | B48: 吴小丹 | C48: 贵阳市粮食和物资储备安全保障中心 | D48: 20101009002 | E48: 176.50 | F48: =E48*100/300 -> 58.83 | G48: =F48*0.3 -> 17.65 | H48: 59.08 | I48: -- | J48: -- | K48: -- | L48: 否，专业测试未达最低合格分数线
A49: 46 | B49: 张茂林 | C49: 贵阳市粮食和物资储备安全保障中心 | D49: 20101009002 | E49: 175.00 | F49: =E49*100/300 -> 58.33 | G49: =F49*0.3 -> 17.50 | H49: 58.50 | I49: -- | J49: -- | K49: -- | L49: 否，专业测试未达最低合格分数线
A50: 47 | B50: 刘泽 | C50: 贵阳市粮食和物资储备安全保障中心 | D50: 20101009002 | E50: 178.00 | F50: =E50*100/300 -> 59.33 | G50: =F50*0.3 -> 17.80 | H50: 58.10 | I50: -- | J50: -- | K50: -- | L50: 否，专业测试未达最低合格分数线
A51: 48 | B51: 杨通伟 | C51: 贵阳市粮食和物资储备安全保障中心 | D51: 20101009002 | E51: 208.00 | F51: =E51*100/300 -> 69.33 | G51: =F51*0.3 -> 20.80 | H51: 57.61 | I51: -- | J51: -- | K51: -- | L51: 否，专业测试未达最低合格分数线
A52: 49 | B52: 付於 | C52: 贵阳市粮食和物资储备安全保障中心 | D52: 20101009002 | E52: 199.00 | F52: =E52*100/300 -> 66.33 | G52: =F52*0.3 -> 19.90 | H52: 57.29 | I52: -- | J52: -- | K52: -- | L52: 否，专业测试未达最低合格分数线
A53: 50 | B53: 李林翰 | C53: 贵阳市粮食和物资储备安全保障中心 | D53: 20101009002 | E53: 185.00 | F53: =E53*100/300 -> 61.67 | G53: =F53*0.3 -> 18.50 | H53: 56.51 | I53: -- | J53: -- | K53: -- | L53: 否，专业测试未达最低合格分数线
A54: 51 | B54: 黄大山 | C54: 贵阳市粮食和物资储备安全保障中心 | D54: 20101009002 | E54: 177.00 | F54: 59.00 | G54: 17.70 | H54: 56.19 | I54: -- | J54: -- | K54: -- | L54: 否，专业测试未达最低合格分数线
A55: 52 | B55: 冉坤 | C55: 贵阳市粮食和物资储备安全保障中心 | D55: 20101009002 | E55: 175.50 | F55: =E55*100/300 -> 58.50 | G55: =F55*0.3 -> 17.55 | H55: 56.07 | I55: -- | J55: -- | K55: -- | L55: 否，专业测试未达最低合格分数线
A56: 53 | B56: 曾梦麒 | C56: 贵阳市粮食和物资储备安全保障中心 | D56: 20101009002 | E56: 190.50 | F56: =E56*100/300 -> 63.50 | G56: =F56*0.3 -> 19.05 | H56: 52.64 | I56: -- | J56: -- | K56: -- | L56: 否，专业测试未达最低合格分数线
A57: 54 | B57: 朱昱婷 | C57: 贵阳市粮食和物资储备安全保障中心 | D57: 20101009002 | E57: 206.00 | F57: 68.67 | G57: 20.60 | H57: -- | I57: -- | J57: -- | K57: -- | L57: 否，专业测试弃考
A58: 55 | B58: 吴俊 | C58: 贵阳市粮食和物资储备安全保障中心 | D58: 20101009002 | E58: 200.50 | F58: 66.83 | G58: 20.05 | H58: -- | I58: -- | J58: -- | K58: -- | L58: 否，专业测试弃考
A59: 56 | B59: 蒋泽磊 | C59: 贵阳市粮食和物资储备安全保障中心 | D59: 20101009002 | E59: 189.50 | F59: 63.17 | G59: 18.95 | H59: -- | I59: -- | J59: -- | K59: -- | L59: 否，专业测试弃考
A60: 57 | B60: 吴红 | C60: 贵阳市粮食和物资储备安全保障中心 | D60: 20101009002 | E60: 189.50 | F60: 63.17 | G60: 18.95 | H60: -- | I60: -- | J60: -- | K60: -- | L60: 否，专业测试弃考
A61: 58 | B61: 王平高 | C61: 贵阳市粮食和物资储备安全保障中心 | D61: 20101009002 | E61: 183.00 | F61: 61.00 | G61: 18.30 | H61: -- | I61: -- | J61: -- | K61: -- | L61: 否，专业测试弃考
A62: 59 | B62: 李顺友 | C62: 贵阳市粮食和物资储备安全保障中心 | D62: 20101009002 | E62: 182.50 | F62: 60.83 | G62: 18.25 | H62: -- | I62: -- | J62: -- | K62: -- | L62: 否，专业测试弃考
A63: 60 | B63: 王子杰 | C63: 贵阳市粮食和物资储备安全保障中心 | D63: 20101009002 | E63: 181.00 | F63: 60.33 | G63: 18.10 | H63: -- | I63: -- | J63: -- | K63: -- | L63: 否，专业测试弃考
A64: 61 | B64: 陈肖肖 | C64: 贵阳市粮食和物资储备安全保障中心 | D64: 20101009003 | E64: 195.50 | F64: =E64*100/300 -> 65.17 | G64: =F64*0.3 -> 19.55 | H64: 73.50 | I64: 29.4 | J64: 48.95 | K64: 1 | L64: 是
A65: 62 | B65: 欧阳亚南 | C65: 贵阳市粮食和物资储备安全保障中心 | D65: 20101009003 | E65: 195.50 | F65: 65.17 | G65: 19.55 | H65: 70.55 | I65: 28.22 | J65: 47.77 | K65: 2 | L65: 是
A66: 63 | B66: 谭文彬 | C66: 贵阳市粮食和物资储备安全保障中心 | D66: 20101009003 | E66: 185.00 | F66: 61.67 | G66: 18.50 | H66: 70.99 | I66: 28.4 | J66: 46.90 | K66: 3 | L66: 是
A67: 64 | B67: 张文艳 | C67: 贵阳市粮食和物资储备安全保障中心 | D67: 20101009003 | E67: 176.50 | F67: 58.83 | G67: 17.65 | H67: 69.73 | I67: 27.89 | J67: 45.54 | K67: 4 | L67: 是
A68: 65 | B68: 杨红艳 | C68: 贵阳市粮食和物资储备安全保障中心 | D68: 20101009003 | E68: 181.50 | F68: 60.50 | G68: 18.15 | H68: 65.88 | I68: 26.35 | J68: 44.50 | K68: 5 | L68: 是
A69: 66 | B69: 余昌芹 | C69: 贵阳市粮食和物资储备安全保障中心 | D69: 20101009003 | E69: 178.50 | F69: 59.50 | G69: 17.85 | H69: 66.63 | I69: 26.65 | J69: 44.50 | K69: 5 | L69: 是
A70: 67 | B70: 任继东 | C70: 贵阳市粮食和物资储备安全保障中心 | D70: 20101009003 | E70: 191.00 | F70: 63.67 | G70: 19.10 | H70: 63.07 | I70: 25.23 | J70: 44.33 | K70: 7 | L70: 否
A71: 68 | B71: 何秋燕 | C71: 贵阳市粮食和物资储备安全保障中心 | D71: 20101009003 | E71: 183.50 | F71: 61.17 | G71: 18.35 | H71: 64.17 | I71: 25.67 | J71: 44.02 | K71: 8 | L71: 否
A72: 69 | B72: 曾治苹 | C72: 贵阳市粮食和物资储备安全保障中心 | D72: 20101009003 | E72: 169.50 | F72: 56.50 | G72: 16.95 | H72: 65.04 | I72: 26.02 | J72: 42.97 | K72: 9 | L72: 否
A73: 70 | B73: 郑朝尹 | C73: 贵阳市粮食和物资储备安全保障中心 | D73: 20101009003 | E73: 170.50 | F73: 56.83 | G73: 17.05 | H73: 64.56 | I73: 25.82 | J73: 42.87 | K73: 10 | L73: 否
A74: 71 | B74: 况丽雯 | C74: 贵阳市粮食和物资储备安全保障中心 | D74: 20101009003 | E74: 167.00 | F74: =E74*100/300 -> 55.67 | G74: =F74*0.3 -> 16.70 | H74: 62.51 | I74: 25 | J74: 41.70 | K74: 11 | L74: 否
A75: 72 | B75: 熊菲菲 | C75: 贵阳市粮食和物资储备安全保障中心 | D75: 20101009003 | E75: 178.50 | F75: =E75*100/300 -> 59.50 | G75: =F75*0.3 -> 17.85 | H75: 59.49 | I75: -- | J75: -- | K75: -- | L75: 否，专业测试未达最低合格分数线
A76: 73 | B76: 李瑞欣 | C76: 贵阳市粮食和物资储备安全保障中心 | D76: 20101009003 | E76: 183.50 | F76: =E76*100/300 -> 61.17 | G76: =F76*0.3 -> 18.35 | H76: 58.44 | I76: -- | J76: -- | K76: -- | L76: 否，专业测试未达最低合格分数线
A77: 74 | B77: 夏尢茜 | C77: 贵阳市粮食和物资储备安全保障中心 | D77: 20101009003 | E77: 173.50 | F77: =E77*100/300 -> 57.83 | G77: =F77*0.3 -> 17.35 | H77: 57.58 | I77: -- | J77: -- | K77: -- | L77: 否，专业测试未达最低合格分数线
A78: 75 | B78: 卢涵 | C78: 贵阳市粮食和物资储备安全保障中心 | D78: 20101009003 | E78: 174.00 | F78: =E78*100/300 -> 58.00 | G78: =F78*0.3 -> 17.40 | H78: 56.65 | I78: -- | J78: -- | K78: -- | L78: 否，专业测试未达最低合格分数线
A79: 76 | B79: 梅界彬 | C79: 贵阳市粮食和物资储备安全保障中心 | D79: 20101009003 | E79: 183.50 | F79: =E79*100/300 -> 61.17 | G79: =F79*0.3 -> 18.35 | H79: 56.10 | I79: -- | J79: -- | K79: -- | L79: 否，专业测试未达最低合格分数线
A80: 77 | B80: 卢珊 | C80: 贵阳市粮食和物资储备安全保障中心 | D80: 20101009003 | E80: 176.50 | F80: 58.83 | G80: 17.65 | H80: -- | I80: -- | J80: -- | K80: -- | L80: 否，专业测试弃考
A81: 78 | B81: 张家瑜 | C81: 贵阳市粮食和物资储备安全保障中心 | D81: 20101009003 | E81: 168.00 | F81: 56.00 | G81: 16.80 | H81: -- | I81: -- | J81: -- | K81: -- | L81: 否，专业测试弃考
A82: 79 | B82: 骆沙 | C82: 贵阳市粮食和物资储备安全保障中心 | D82: 20101009003 | E82: 167.50 | F82: 55.83 | G82: 16.75 | H82: -- | I82: -- | J82: -- | K82: -- | L82: 否，专业测试弃考
